fUSD/lending_fUSD_20240317
["ID","MTS","AMOUNT","RATE_DAILY","PERIOD"]
[319405744,1710717074530,-3899.051437,0.000308,2]
[319405745,1710717074541,-4456.058785,0.000308,2]
[319405746,1710717074550,-2026.535919,0.000308,2]
[319405747,1710717074559,-250.0,0.000308,30]
[319405748,1710717074569,-144270.29605865,0.000308,2]
[319405749,1710717074582,-155.0,0.00030821,5]
[319405750,1710717074591,-878.12596,0.00030822,7]
[319405751,1710717074602,-10000.0,0.0003088,2]
[319405752,1710717074612,-156.19687461,0.00030932,30]
[319405753,1710717074621,-500.0,0.00030958,4]
[319405754,1710717074632,-510.0,0.00030958,120]
[319405755,1710717074641,-2000.0,0.00030973,2]
[319405756,1710717074650,-200000.0,0.00031,31]
[319405757,1710717074659,-200000.0,0.00031,21]
[319405758,1710717074669,-607.13892741,0.00031,7]
[319405759,1710717074678,-300.29294346,0.00031,5]
[319405760,1710717074688,-2161.34366312,0.00031,2]
[319405761,1710717074698,-2100.0,0.00031,2]
[319405762,1710717074707,-25707.88366252,0.00031,7]
[319405763,1710717074717,-588.81873007,0.00031,7]
[319405764,1710717074726,-500.0,0.00031,30]
[319405765,1710717074737,-500.0,0.00031,30]
[319405766,1710717074748,-500.0,0.00031,30]
[319405767,1710717074758,-500.00000001,0.00031,30]
[319405768,1710717074767,-1200.0,0.00031,32]
[319405769,1710717074777,-1000.0,0.00031,120]
[319405770,1710717074786,-228350.24975061,0.00031,5]
[319405771,1710717074795,-284.76,0.00031,3]
[319405772,1710717074804,-300.0,0.00031,31]
[319405773,1710717074814,-561.0,0.00031,19]
[319405774,1710717074826,-1950.0,0.00031,3]
[319405775,1710717074835,-1012.34,0.0003101,2]
[319405776,1710717074844,-300.0,0.000311,2]
[319405777,1710717074854,-156.19687461,0.00031123,30]
[319405778,1710717074863,-500.0,0.00031232,4]
[319405779,1710717074873,-510.0,0.00031232,120]
[319405780,1710717074884,-300.0,0.00031233,5]
[319405781,1710717074893,-150.0,0.00031233,2]
[319405782,1710717074902,-9183.96,0.000313,2]
[319405783,1710717074911,-9183.96,0.000313,2]
[319405784,1710717074921,-9183.96,0.000313,2]
[319405785,1710717074932,-9183.96,0.000313,2]
[319405786,1710717074944,-9183.96,0.000313,2]
[319405787,1710717074953,-9183.96,0.000313,2]
[319405788,1710717074964,-9183.96,0.000313,2]
[319405789,1710717074974,-9183.96,0.000313,2]
[319405790,1710717074983,-9183.96,0.000313,2]
[319405791,1710717074993,-9183.96,0.000313,2]
[319405792,1710717075003,-9183.96,0.000313,2]
[319405793,1710717075012,-9183.96,0.000313,2]
[319405794,1710717075022,-9183.96,0.000313,2]
[319405795,1710717075033,-9183.96,0.000313,2]
[319405796,1710717075044,-9183.96,0.000313,2]
[319405797,1710717075054,-9183.96,0.000313,2]
[319405798,1710717075064,-9183.96,0.000313,2]
[319405799,1710717075074,-9183.96,0.000313,2]
[319405800,1710717075084,-9183.96,0.000313,2]
[319405801,1710717075093,-9183.96,0.000313,2]
[319405802,1710717075103,-156.19687461,0.00031315,30]
[319405803,1710717075113,-1012.34,0.00031345,2]
[319405804,1710717075124,-22739.63,0.0003141,10]
[319405805,1710717075134,-154.12575019,0.00031411,7]
[319405806,1710717075142,-18150.57934522,0.0003143,4]
[319405807,1710717075151,-605.0,0.0003147,2]
[319405808,1710717075161,-617.0,0.0003147,2]
[319405809,1710717075171,-156.19687461,0.00031479,30]
[319405810,1710717075181,-3805.22599309,0.00031484,11]
[319405811,1710717075190,-70583.76359764,0.000315,2]
[319405812,1710717075199,-561.0,0.000315,20]
[319405813,1710717075208,-566.7032741,0.00031506,4]
[319405814,1710717075218,-4428.63,0.00031506,2]
[319405815,1710717075231,-510.0,0.00031506,120]
[319405816,1710717075241,-155.0,0.00031508,2]
[319405817,1710717075250,-154.12575019,0.00031554,7]
[319405818,1710717075259,-1100.0,0.000316,4]
[319405819,1710717075268,-18147.66785,0.000316,2]
[319405820,1710717075278,-300.0,0.000316,2]
[319405821,1710717075287,-470.69,0.00031644,2]
[319405822,1710717075295,-11025.66877831,0.0003165,2]
[319405823,1710717075305,-156.19687461,0.00031671,30]
[319405824,1710717075314,-155.08176692,0.0003168,7]
[319405825,1710717075328,-1021.0,0.00031687,4]
[319405826,1710717075337,-100000.0,0.00031755,4]
[319405827,1710717075346,-510.0,0.0003178,120]
[319405828,1710717075355,-440.27019386,0.00031781,5]
[319405829,1710717075364,-150.0,0.00031781,2]
[319405830,1710717075372,-155.77767653,0.00031789,30]
[319405831,1710717075381,-1026.0,0.00031799,5]
[319405832,1710717075390,-387.5409,0.000318,7]
[319405833,1710717075399,-156.19687461,0.00031863,30]
[319405834,1710717075408,-150.0,0.00031884,3]
[319405835,1710717075418,-10000.0,0.00031888,7]
[319405836,1710717075427,-2727.37454392,0.00031901,2]
[319405837,1710717075436,-1563.02622401,0.00031903,2]
[319405838,1710717075445,-2848.7630622,0.00031905,2]
[319405839,1710717075454,-8685.5369006,0.00031906,2]
[319405840,1710717075464,-2868.92199828,0.00031906,2]
[319405841,1710717075473,-2885.24773453,0.00031906,2]
[319405842,1710717075482,-414.63907772,0.0003191,2]
[319405843,1710717075492,-2680.94423608,0.00031911,2]
[319405844,1710717075509,-4314.0,0.00031911,2]
[319405845,1710717075525,-302.43,0.0003,2]
[319405846,1710717075534,-147.57,0.00031911,2]
[319405847,1710717075547,-2199.64752675,0.00031911,2]
[319405848,1710717075556,-2918.53774029,0.00031911,2]
[319405849,1710717075567,-925.31473374,0.00031912,2]
[319405850,1710717075602,-712.29463692,0.00013401,2]
[319405851,1710717075615,-580.79166872,0.00013401,2]
[319405852,1710717076266,-324.1,0.00011957,2]
[319405853,1710717076276,-3727.21906573,0.00013401,2]
[319405854,1710717076285,-300.0,0.00013999,2]
[319405855,1710717076295,-260.49,0.00014795,2]
[319405856,1710717076305,-520.23,0.00014932,2]
[319405857,1710717076314,-300.0,0.00015199,2]
[319405858,1710717076324,-300.0,0.00015399,2]
[319405859,1710717076333,-304.09985761,0.00017867,2]
[319405860,1710717076343,-531.08,0.0001863,2]
[319405861,1710717076352,-11298.17,0.0001863,2]
[319405862,1710717076361,-507.19,0.0001863,2]
[319405863,1710717076370,-3083.59,0.0001863,2]
[319405864,1710717076379,-531.08,0.0001863,2]
[319405865,1710717076388,-507.19,0.0001863,2]
[319405866,1710717076398,-3083.59,0.0001863,2]
[319405867,1710717076407,-531.08,0.0001863,2]
[319405868,1710717076416,-507.19,0.0001863,2]
[319405869,1710717076425,-3083.59,0.0001863,2]
[319405870,1710717076434,-2161.69439196,0.0001863,2]
[319405871,1710717076446,-4677.57268814,0.0001863,2]
[319405872,1710717076458,-2591.68,0.0001863,2]
[319405873,1710717076476,-604.57016637,0.0001863,2]
[319405874,1710717076487,-250.13277065,0.0001863,2]
[319405875,1710717076499,-1012.51998288,0.0001863,2]
[319405876,1710717076508,-531.08,0.0001863,2]
[319405877,1710717076518,-507.19,0.0001863,2]
[319405878,1710717076527,-3083.59,0.0001863,2]
[319405879,1710717076537,-507.19,0.0001863,2]
[319405880,1710717076546,-531.08,0.0001863,2]
[319405881,1710717076556,-3083.59,0.0001863,2]
[319405882,1710717076565,-5305.18398219,0.0001863,2]
[319405883,1710717076578,-2438.60606888,0.0001863,2]
[319405884,1710717076612,338.05662783,0.00011713,2]
[319405885,1710717076624,-2715.70496071,0.0001863,2]
[319405886,1710717076672,-211.6428663,0.00013695,2]
[319405887,1710717076682,-95.36160869,0.0001863,2]
[319405888,1710717076693,-743.31337953,0.0001863,2]
[319405889,1710717076704,-507.19,0.0001863,2]
[319405890,1710717076713,-531.08,0.0001863,2]
[319405891,1710717076723,-1203.96327053,0.0001863,2]
[319405892,1710717076735,-1879.62672947,0.0001863,2]
[319405893,1710717076744,-507.19,0.0001863,2]
[319405894,1710717076754,-531.08,0.0001863,2]
[319405895,1710717076764,-3083.59,0.0001863,2]
[319405896,1710717076774,-4481.68287054,0.0001863,2]
[319405897,1710717076785,-6816.48712946,0.0001863,2]
[319405898,1710717076795,-507.19,0.0001863,2]
[319405899,1710717076805,-531.08,0.0001863,2]
[319405900,1710717076815,-2620.77547058,0.0001863,2]
[319405901,1710717076828,-462.81452942,0.0001863,2]
[319405902,1710717076838,-11298.17,0.0001863,2]
[319405903,1710717076848,-507.23,0.0001863,2]
[319405904,1710717076858,-3083.59,0.0001863,2]
[319405905,1710717076868,-531.08,0.0001863,2]
[319405906,1710717076878,-3610.74723482,0.0001863,2]
[319405907,1710717076916,-5020.30537137,0.000139,2]
[319405908,1710717076925,-6952.92247983,0.0001863,2]
[319405909,1710717076937,-734.50028535,0.0001863,2]
[319405910,1710717076947,-3083.59,0.0001863,2]
[319405911,1710717076957,-531.08,0.0001863,2]
[319405912,1710717076966,-675.43552307,0.0001863,2]
[319405913,1710717076978,-10622.73447693,0.0001863,2]
[319405914,1710717076988,-3083.7569582,0.0001863,2]
[319405915,1710717076997,-531.08,0.0001863,2]
[319405916,1710717077007,-11298.17,0.0001863,2]
[319405917,1710717077017,-531.08,0.0001863,2]
[319405918,1710717077026,-531.08,0.0001863,2]
[319405919,1710717077036,-11298.17,0.0001863,2]
[319405920,1710717077045,-531.08,0.0001863,2]
[319405921,1710717077055,-11298.17,0.0001863,2]
[319405922,1710717077065,-11298.17,0.0001863,2]
[319405923,1710717077075,-531.08,0.0001863,2]
[319405924,1710717077085,-6480.88186488,0.0001863,2]
[319405925,1710717077171,-558.35965111,0.00011956,2]
[319405926,1710717077195,-2798.92161926,0.00011956,2]
[319405927,1710717077205,-170.1430055,0.00011956,2]
[319405928,1710717077214,-204.27235526,0.000134,2]
[319405929,1710717077224,-150.99,0.00013563,2]
[319405930,1710717077234,-225.448523,0.00013699,2]
[319405931,1710717077247,-4817.28813512,0.0001863,2]
[319405932,1710717077257,-531.08,0.0001863,2]
[319405933,1710717077267,-11298.17,0.0001863,2]
[319405934,1710717077276,-531.08,0.0001863,2]
[319405935,1710717077286,-531.08,0.0001863,2]
[319405936,1710717077295,-11298.17,0.0001863,2]
[319405937,1710717077305,-11298.34529853,0.0001863,2]
[319405938,1710717077315,-531.08,0.0001863,2]
[319405939,1710717077329,-531.08,0.0001863,2]
[319405940,1710717077339,-531.2446379,0.0001863,2]
[319405941,1710717077348,-150.0,0.00021887,2]
[319405942,1710717077358,-150.0,0.00022035,2]
[319405943,1710717077368,-150.0,0.00022155,2]
[319405944,1710717077378,-150.0,0.00022224,2]
[319405945,1710717077387,-150.0,0.00022234,2]
[319405946,1710717077397,-216.35466224,0.00022471,2]
[319405947,1710717077406,-302.7676463,0.00023129,2]
[319405948,1710717077417,-1105.40085884,0.00027396,2]
[319405949,1710717077427,-302.43,0.0003,2]
[319405950,1710717077437,-302.43,0.0003,2]
[319405951,1710717077448,-302.43,0.0003,2]
[319405952,1710717077459,-302.43,0.0003,2]
[319405953,1710717077470,-302.43,0.0003,2]
[319405954,1710717077481,-302.43,0.0003,2]
[319405955,1710717077490,-302.43,0.0003,2]
[319405956,1710717077500,-302.43,0.0003,2]
[319405957,1710717077510,-302.43,0.0003,2]
[319405958,1710717077520,-302.43,0.0003,2]
[319405959,1710717077530,-302.43,0.0003,2]
[319405960,1710717077539,-302.43,0.0003,2]
[319405961,1710717077549,-302.43,0.0003,2]
[319405962,1710717077559,-302.43,0.0003,2]
[319405963,1710717077570,-302.43,0.0003,2]
[319405964,1710717077581,-302.43,0.0003,2]
[319405965,1710717077591,-302.43,0.0003,2]
[319405966,1710717077600,-302.43,0.0003,2]
[319405967,1710717077610,-302.43,0.0003,2]
[319405968,1710717077620,-302.43,0.0003,2]
[319405969,1710717077630,-302.43,0.0003,2]
[319405970,1710717077641,-1105.40085884,0.00031316,3]
[319405971,1710717077651,-1492.40240046,0.00031912,2]
[319405972,1710717077661,-2615.39045877,0.00031913,2]
[319405973,1710717077671,-2740.51219421,0.00031915,2]
[319405974,1710717077680,-2919.7935225,0.00031915,2]
[319405975,1710717077690,-2939.01576146,0.00031916,2]
[319405976,1710717077700,-443.36141994,0.00031916,2]
[319405977,1710717077710,-2930.06321131,0.00031916,2]
[319405978,1710717077719,-2857.30874956,0.00031918,2]
[319405979,1710717077729,-920.92208442,0.00031919,2]
[319405980,1710717077739,-2884.75767818,0.00031919,2]
[319405981,1710717077748,-2941.6242244,0.0003192,2]
[319405982,1710717077758,-2842.28250364,0.0003192,2]
[319405983,1710717077767,-8627.26513295,0.00031921,2]
[319405984,1710717077780,-263.22253161,0.00031921,2]
[319405985,1710717077789,-2452.36639883,0.00031921,2]
[319405986,1710717077799,-2369.00584676,0.00031921,2]
[319405987,1710717077809,-2287.2514517,0.00031923,2]
[319405988,1710717077820,-6430.91389481,0.00031923,2]
[319405989,1710717077831,-2745.47286841,0.00031923,2]
[319405990,1710717077841,-2280.06036432,0.00031923,2]
[319405991,1710717077850,-2876.17273982,0.00031925,2]
[319405992,1710717077859,-2782.75345582,0.00031927,2]
[319405993,1710717077868,-2834.75509447,0.00031927,2]
[319405994,1710717077877,-8455.09026597,0.00031928,2]
[319405995,1710717077886,-2294.79843169,0.00031928,2]
[319405996,1710717077896,-451.25851848,0.00031929,2]
[319405997,1710717077906,-2950.14845369,0.0003193,2]
[319405998,1710717077915,-9005.71526394,0.0003193,2]
[319405999,1710717077924,-2936.0954078,0.00031932,2]
[319406000,1710717077933,-2859.08286299,0.00031933,2]
[319406001,1710717077942,-2577.9260313,0.00031935,2]
[319406002,1710717077951,-2951.56506386,0.00031935,2]
[319406003,1710717077960,-2950.17296015,0.00031935,2]
[319406004,1710717077970,-1529.1663294,0.00031936,2]
[319406005,1710717077979,-2912.57319392,0.00031937,2]
[319406006,1710717077988,-2907.13806223,0.00031937,2]
[319406007,1710717077997,-3564.42504034,0.00031939,2]
[319406008,1710717078008,-5968.3931954,0.00031939,2]
[319406009,1710717078018,-2969.04971337,0.0003194,2]
[319406010,1710717078027,-9177.65513154,0.0003194,2]
[319406011,1710717078036,-2919.76629285,0.00031941,2]
[319406012,1710717078045,-2122.71465758,0.00031941,2]
[319406013,1710717078055,-2777.24920878,0.00031942,2]
[319406014,1710717078064,-2909.16120292,0.00031943,2]
[319406015,1710717078079,-1821.93106975,0.00031943,2]
[319406016,1710717078089,-2229.7806201,0.00031944,2]
[319406017,1710717078098,-2259.42195764,0.00031946,2]
[319406018,1710717078107,-2638.65769812,0.00031947,2]
[319406019,1710717078116,-2931.38174433,0.00031948,2]
[319406020,1710717078125,-2604.91434953,0.00031948,31]
[319406021,1710717078135,-2826.95738098,0.00031952,2]
[319406022,1710717078144,-2855.53620685,0.00031952,2]
[319406023,1710717078153,-2927.73410138,0.00031952,2]
[319406024,1710717078162,-8818.22906514,0.00031953,2]
[319406025,1710717078172,-9035.26464631,0.00031954,2]
[319406026,1710717078181,-2895.0958391,0.00031954,2]
[319406027,1710717078191,-2965.1907886,0.00031954,2]
[319406028,1710717078200,-1885.46903468,0.00031954,2]
[319406029,1710717078209,-2253.92995419,0.00031954,2]
[319406030,1710717078219,-2495.89932076,0.00031955,2]
[319406031,1710717078231,-472.57279931,0.00031956,2]
[319406032,1710717078241,-483.60089309,0.00031956,2]
[319406033,1710717078250,-163.45194209,0.00031957,2]
[319406034,1710717078272,-1000.0,0.000134,2]
[319406035,1710717078282,-2173.48750871,0.00031957,2]
[319406036,1710717078291,-2945.78960337,0.00031957,2]
[319406037,1710717078300,-2992.41904916,0.00031958,2]
[319406038,1710717078310,-9135.1819681,0.00031959,2]
[319406039,1710717078319,-2944.67224254,0.00031959,2]
[319406040,1710717078333,-2846.13506895,0.0003196,2]
[319406041,1710717078342,-1749.29322785,0.0003196,2]
[319406042,1710717078352,-420.59696335,0.0003196,2]
[319406043,1710717078361,-2911.19969521,0.00031963,2]
[319406044,1710717078370,-433.35251589,0.00031963,2]
[319406045,1710717078379,-2811.1073232,0.00031964,2]
[319406046,1710717078389,-2865.70147187,0.00031965,2]
[319406047,1710717078398,-2747.03254729,0.00031965,2]
[319406048,1710717078407,-2944.53339686,0.00031965,2]
[319406049,1710717078416,-2843.90173249,0.00031966,2]
[319406050,1710717078426,-2852.17124406,0.00031966,2]
[319406051,1710717078435,-2805.25081365,0.00031967,2]
[319406052,1710717078445,-2818.70931392,0.00031968,2]
[319406053,1710717078455,-2839.92913827,0.00031968,2]
[319406054,1710717078465,-2007.8838327,0.00031972,2]
[319406055,1710717078475,-2000.0,0.00031973,2]
[319406056,1710717078485,-2755.66307678,0.00031973,2]
[319406057,1710717078494,-2953.8162951,0.00031973,2]
[319406058,1710717078503,-2823.97898682,0.00031974,2]
[319406059,1710717078513,-2953.2804997,0.00031974,2]
[319406060,1710717078522,-2781.20773257,0.00031976,2]
[319406061,1710717078531,-491.85253754,0.00031977,2]
[319406062,1710717078540,-2824.9873182,0.00031977,2]
[319406063,1710717078550,-483.90850709,0.00031978,2]
[319406064,1710717078559,-2813.27378839,0.0003198,2]
[319406065,1710717078569,-2973.55651636,0.0003198,2]
[319406066,1710717078582,-2862.88929568,0.00031982,2]
[319406067,1710717078591,-2175.86220431,0.00031982,2]
[319406068,1710717078600,-2875.31487105,0.00031985,2]
[319406069,1710717078610,-6163.66467833,0.00031985,2]
[319406070,1710717078779,338.05662783,0.00011714,2]
[319406071,1710717079017,338.05662783,0.00011714,2]
[319406072,1710717079313,338.05662783,0.00011714,2]
[319406073,1710717079434,338.05662783,0.00011714,2]
[319406074,1710717795970,-1811.14075359,0.00011921,2]
[319406075,1710717795993,-235.95798628,0.00011922,2]
[319406076,1710717796016,-376.18,0.00011923,2]
[319406077,1710717796039,-1806.99127667,0.00011956,2]
[319406078,1710717796071,-155.0,0.00012804,2]
[319406079,1710717796097,-23182.13279702,0.00012806,2]
[319406080,1710717796120,-3984.87,0.00012807,2]
[319406081,1710717796143,-231.95,0.00012807,2]
[319406082,1710717796166,-1403.35350734,0.00013017,2]
[319406083,1710717796189,-151.08790144,0.00013017,2]
[319406084,1710717796212,-185.458387,0.00013106,2]
[319406085,1710717796235,-258.84047111,0.00013114,2]
[319406086,1710717796258,-150.0,0.00013114,2]
[319406087,1710717796279,-150.0,0.00013114,2]
[319406088,1710717796307,-525917.03691955,0.00013116,2]
[319406089,1710717832195,-45500.0,0.00012338,2]
[319406090,1710718057720,500.0,0.00011376,2]
[319406091,1710718146733,480.38,0.00011666,2]
[319406092,1710718180305,250.0,0.00011352,2]
[319406114,1710718231423,-235.95798628,0.00011873,2]
[319406115,1710718231433,-1000.0,0.00011874,2]
[319406116,1710718231442,-98.88061372,0.00011963,2]
[319406117,1710718231480,-276.34938628,0.00011963,2]
[319406118,1710718231489,-375.23,0.00011996,2]
[319406119,1710718231498,-375.23,0.00012029,2]
[319406120,1710718231508,-150.0,0.00012054,2]
[319406121,1710718231517,-3533.5645461,0.00012055,2]
[319406122,1710718231529,-1075.43,0.00012055,2]
[319406123,1710718231651,-6480.97604691,0.00012055,2]
[319406124,1710718231767,-4236.17914182,0.00012055,2]
[319406183,1710718237567,-28657.22026517,0.00012055,2]
[319406184,1710718237576,-375.23,0.00012062,2]
[319406185,1710718237585,-375.23,0.00012094,2]
[319406186,1710718237594,-127935.0,0.00012116,2]
[319406187,1710718237603,-375.23,0.00012127,2]
[319406188,1710718237612,-150.99,0.00012127,2]
[319406189,1710718237621,-9999.99,0.00012127,2]
[319406190,1710718237630,-455.3,0.00012127,2]
[319406191,1710718237640,-375.23,0.0001216,2]
[319406192,1710718237649,-375.23,0.00012193,2]
[319406193,1710718237658,-1826.12,0.00012193,2]
[319406194,1710718237667,-499.99,0.00012193,2]
[319406195,1710718237677,-375.23,0.00012226,2]
[319406196,1710718237687,-157.93347939,0.00012248,2]
[319406197,1710718237696,-375.23,0.00012258,2]
[319406198,1710718237705,-375.23,0.00012291,2]
[319406199,1710718237714,-157.93347939,0.00012291,2]
[319406200,1710718237724,-375.23,0.00012324,2]
[319406201,1710718237733,-157.93347939,0.00012335,2]
[319406203,1710718237743,-395.6,0.00012337,2]
[319406205,1710718237754,-58147.53789883,0.00012338,2]
[319406207,1710718237763,-375.23,0.00012357,2]
[319406209,1710718237772,-157.93347939,0.00012378,2]
[319406211,1710718237781,-375.23,0.0001239,2]
[319406212,1710718237791,-157.93347939,0.00012422,2]
[319406214,1710718237801,-375.23,0.00012423,2]
[319406216,1710718237810,-375.23,0.00012455,2]
[319406219,1710718237819,-157.93347939,0.00012465,2]
[319406221,1710718237828,-375.23,0.00012488,2]
[319406222,1710718237838,-1022984.60840799,0.00012508,2]
[319406224,1710718237848,-157.93347939,0.00012509,2]
[319406226,1710718237857,-375.23,0.00012521,2]
[319406227,1710718237867,-157.93347939,0.00012552,2]
[319406228,1710718237877,-375.23,0.00012554,2]
[319406229,1710718237886,-375.23,0.00012587,2]
[319406230,1710718237896,-157.93347939,0.00012596,2]
[319406231,1710718237906,-653.95,0.00012631,2]
[319406232,1710718237916,-157.93347939,0.00012639,2]
[319406233,1710718237926,-157.93347939,0.00012683,2]
[319406234,1710718237936,-157.93347939,0.00012726,2]
[319406235,1710718237946,-157.93347939,0.0001277,2]
[319406236,1710718237955,-157.93347939,0.00012813,2]
[319406237,1710718237965,-157.93347939,0.00012857,2]
[319406238,1710718237974,-157.93347939,0.000129,2]
[319406239,1710718237985,-252152.21707761,0.00013,2]
[319406240,1710718237998,-777.16493119,0.00013,2]
[319406241,1710718238017,-1424827.42712144,0.00013,2]
[319406242,1710718238027,-10937.90898458,0.00013115,2]
[319406243,1710718238037,-254.85,0.00013117,2]
[319406244,1710718238051,-4040.97,0.00013119,2]
[319406245,1710718238061,-1000.0,0.00013358,2]
[319406246,1710718238070,-289.39993608,0.00013398,2]
[319406247,1710718238080,-580.83978395,0.00013398,2]
[319406248,1710718238089,-187.37515268,0.000134,2]
[319406249,1710718238099,-600.0,0.00013488,2]
[319406250,1710718238109,-1831.03,0.00013699,2]
[319406251,1710718238118,-5000.0,0.00013699,2]
[319406252,1710718238130,-250.0,0.00013699,2]
[319406253,1710718238139,-200.0,0.00013699,2]
[319406254,1710718238149,-186.68,0.00013699,2]
[319406255,1710718238158,-2751.0,0.00013699,2]
[319406256,1710718238168,-500.0,0.00013699,2]
[319406257,1710718238177,-10000.0,0.00013699,2]
[319406258,1710718238187,-177.21162287,0.00013794,2]
[319406259,1710718238196,-158.40518458,0.00013794,2]
[319406260,1710718238205,-176.64536545,0.00013794,2]
[319406261,1710718238215,-16793.3594,0.00013799,2]
[319406262,1710718238225,-23900.0,0.00013807,2]
[319406263,1710718238234,-2000.0,0.00013808,2]
[319406264,1710718238243,-200.0,0.00013808,2]
[319406265,1710718238253,-1864.45,0.00013824,2]
[319406266,1710718238262,-5800.0,0.000139,2]
[319406267,1710718238271,-480.38,0.0001393,2]
[319406268,1710718238280,-151.08790136,0.00014273,2]
[319406269,1710718238289,-1000.0,0.00014843,2]
[319406270,1710718238300,-321.69071645,0.00015,2]
[319406271,1710718238309,-5000.0,0.00015,2]
[319406272,1710718238318,-1550.0,0.00015,3]
[319406273,1710718238328,-600.0,0.00015174,2]
[319406274,1710718238336,-1424.99494598,0.000152,2]
[319406275,1710718238345,-151.53,0.00015295,2]
[319406276,1710718238354,-151.53,0.00015414,2]
[319406277,1710718238363,-151.08790136,0.00015529,2]
[319406278,1710718238372,-151.53,0.00015533,2]
[319406279,1710718238381,-151.53,0.00015652,2]
[319406280,1710718238390,-151.53,0.00015771,2]
[319406281,1710718238399,-151.53,0.0001589,2]
[319406282,1710718238408,-151.53,0.00016009,2]
[319406283,1710718238418,-151.53,0.00016128,2]
[319406284,1710718238427,-970.40841556,0.00016171,2]
[319406285,1710718238436,-442.196,0.00016171,2]
[319406286,1710718238445,-178.87155138,0.00016179,2]
[319406287,1710718238454,-970.40841556,0.00016181,2]
[319406288,1710718238463,-480.38,0.00016194,2]
[319406289,1710718238472,-151.53,0.00016247,2]
[319406290,1710718238481,-1000.0,0.00016327,2]
[319406291,1710718238491,-151.53,0.00016366,2]
[319406292,1710718238500,-1864.45,0.00016564,2]
[319406293,1710718238510,-151.08790136,0.00016784,2]
[319406294,1710718238519,-245000.0,0.00016849,2]
[319406295,1710718238528,-761.5125,0.00016849,2]
[319406296,1710718238542,-500.0,0.00016849,2]
[319406297,1710718238551,-1000.0,0.00016849,2]
[319406298,1710718238560,-600.0,0.0001686,2]
[319406299,1710718238569,-1600.0,0.00017,3]
[319406300,1710718238580,-233.3910062,0.00017053,2]
[319406301,1710718238589,-151.30766298,0.00017275,2]
[319406302,1710718238599,-155.33791433,0.00017291,2]
[319406303,1710718238608,-155.33791433,0.00017464,2]
[319406304,1710718238618,-449.14958006,0.00017509,2]
[319406305,1710718238630,-166.66666666,0.00017753,2]
[319406306,1710718238639,-3820.0,0.000178,2]
[319406307,1710718238648,-1000.0,0.00017811,2]
[319406308,1710718238659,-151.08790136,0.0001804,2]
[319406309,1710718238669,-150.0,0.00018053,2]
[319406310,1710718238678,-159.0,0.00018109,2]
[319406311,1710718238687,-155.0,0.00018109,2]
[319406312,1710718238696,-159.0,0.00018137,2]
[319406313,1710718238706,-159.0,0.00018164,2]
[319406314,1710718238715,-159.0,0.00018192,2]
[319406315,1710718238725,-154.12575019,0.00018202,2]
[319406316,1710718238734,-159.0,0.00018219,2]
[319406317,1710718238745,-159.0,0.00018246,2]
[319406318,1710718238755,-159.0,0.00018274,2]
[319406319,1710718238765,-159.0,0.00018301,2]
[319406320,1710718238774,-159.0,0.00018329,2]
[319406321,1710718238784,-159.0,0.00018356,2]
[319406322,1710718238793,-159.0,0.00018383,2]
[319406323,1710718238803,-167.0,0.00018411,2]
[319406324,1710718238812,-480.38,0.00018458,2]
[319406325,1710718238822,-135559.21080086,0.000185,2]
[319406326,1710718238832,-406.10697296,0.000185,2]
[319406327,1710718238841,-1000.0,0.000185,2]
[319406328,1710718238851,-1000.0,0.000185,2]
[319406329,1710718238860,-800.0,0.0001852,2]
[319406330,1710718238870,-1136.0,0.0001852,2]
[319406331,1710718238880,-357.0,0.0001852,2]
[319406332,1710718238890,-3000.0,0.0001852,2]
[319406333,1710718238900,-1458.0,0.0001852,2]
[319406334,1710718238910,-2418.0,0.0001852,2]